bitfinex/quotes_ETHUSD_20241204
["timestamp","ask_amount","ask_price","bid_price","bid_amount"]
[1733296640952,0.2513494,3701.3,3700.2,2.70253]
[1733296641155,3.0,3701.3,3700.2,2.70253]
[1733296641356,0.2513494,3701.2,3700.2,2.70253]
[1733296641664,3.0,3701.1,3700.2,2.70253]
[1733296641867,3.59533162,3701.1,3700.2,2.70253]
[1733296642429,0.25152106,3701.0,3700.2,2.70253]
[1733296644280,0.25152106,3701.0,3700.0,0.9761]
[1733296644281,0.25152106,3701.0,3700.0,3.67878]
[1733296645075,2.95382546,3701.0,3700.0,3.67878]
[1733296645368,2.70214,3700.8,3700.0,0.7761]
[1733296645534,2.70183,3701.2,3700.0,0.7761]
[1733296645535,0.54733708,3700.7,3700.0,0.7761]
[1733296645735,2.70206,3700.9,3700.0,0.7761]
[1733296645934,0.25193853,3700.8,3700.0,0.7761]
[1733296646167,0.25193853,3700.7,3700.0,0.7761]
[1733296646377,0.25193853,3700.6,3700.0,0.7761]
[1733296646574,2.95409853,3700.8,3700.0,0.7761]
[1733296646872,0.54734838,3700.7,3699.7,0.7717]
[1733296647172,0.25193853,3700.6,3699.7,3.47461]
[1733296647470,0.25193853,3700.5,3699.7,3.47461]
[1733296647659,0.25193853,3700.4,3699.7,3.47461]
[1733296647858,0.25193853,3700.3,3699.7,3.47461]
[1733296648027,0.55169351,3700.6,3699.7,0.7717]
[1733296648234,0.25193853,3700.5,3700.0,2.70268]
[1733296648429,3.0,3701.1,3700.0,2.70268]
[1733296648682,0.2523588,3700.4,3699.7,0.7717]
[1733296648846,0.55,3701.2,3700.0,2.70266]
[1733296649170,0.25234778,3701.1,3700.3,2.70242]
[1733296649372,0.25234778,3701.0,3700.3,2.70242]
[1733296649536,0.25234778,3700.9,3700.3,2.70242]
[1733296649874,3.0,3701.3,3700.4,2.70238]
[1733296649875,0.25234778,3700.8,3700.4,2.70238]
[1733296650046,0.25234778,3700.7,3700.5,2.70233]
[1733296650372,0.2524978,3701.3,3700.7,2.70217]
[1733296650531,0.2524978,3701.2,3700.7,2.70217]
[1733296650729,8.81,3701.4,3700.7,2.70217]
[1733296650730,0.2524978,3701.1,3700.7,2.70217]
[1733296650972,0.2524978,3701.0,3700.7,2.70217]
[1733296651178,0.2749559,3702.0,3700.7,0.71890189]
[1733296651474,0.25246004,3701.9,3701.0,2.7019]
[1733296651772,0.25246004,3701.8,3701.0,2.7019]
[1733296652068,0.25246004,3701.7,3700.8,3.46821]
[1733296652277,8.81,3702.2,3700.8,3.46821]
[1733296652278,0.25246004,3701.6,3701.0,2.70196]
[1733296652455,0.25246004,3701.5,3701.0,2.70196]
[1733296652639,0.25246004,3701.4,3701.0,2.70196]
[1733296652977,0.25246004,3701.3,3701.0,2.70196]
[1733296653153,0.25246004,3701.2,3701.0,2.70196]
[1733296653353,0.25246004,3701.1,3701.0,2.70196]
[1733296653944,0.25246004,3701.1,3701.0,3.52226]
[1733296654254,17.52584419,3703.2,3701.3,0.2]
[1733296654452,0.25279809,3703.1,3701.3,0.2]
[1733296654653,17.52584419,3703.2,3701.3,0.2]
[1733296654654,0.25279809,3703.0,3701.3,0.2]
[1733296654840,0.25279809,3702.9,3701.4,0.88769372]
[1733296655048,2.95348809,3702.8,3701.5,2.70158]
[1733296655276,0.25279809,3702.7,3701.5,2.70158]
[1733296655459,0.29534881,3702.6,3701.5,2.70158]
[1733296655650,0.25270613,3702.5,3701.5,2.70158]
[1733296655850,0.25270613,3702.4,3701.5,2.70158]
[1733296656050,0.25270613,3702.3,3701.5,2.70158]
[1733296656264,0.25270613,3702.2,3701.5,2.70158]
[1733296656460,0.25270613,3702.1,3701.5,3.08050737]
[1733296656682,0.25270613,3702.0,3701.5,3.08050737]
[1733296656981,0.25270613,3701.9,3701.8,6.17216567]
[1733296657334,0.00695113,3703.2,3701.9,0.7925]
[1733296657581,0.25248706,3703.1,3702.4,2.70094]
[1733296657783,0.25248706,3703.0,3702.5,0.7615]
[1733296657936,0.25248706,3702.9,3702.5,0.7615]
[1733296658137,0.25248706,3702.8,3702.5,0.7615]
[1733296658490,0.00695113,3703.2,3702.5,0.9615]
[1733296658491,0.25248706,3702.7,3702.5,0.9615]
[1733296658672,0.25248706,3702.6,3702.5,3.66237]
[1733296658975,0.00695113,3703.2,3702.5,3.66237]
[1733296658976,0.00695113,3703.2,3702.5,0.9615]
[1733296659289,0.25229951,3703.1,3702.5,0.9615]
[1733296659594,0.00695113,3703.2,3702.5,0.9615]
[1733296659595,0.25229951,3703.0,3702.5,1.06149372]
[1733296659882,0.25229951,3702.9,3702.5,1.69556029]
[1733296660090,0.25229951,3702.8,3702.5,4.39637029]
[1733296660247,0.25229951,3702.7,3702.6,2.7008]
[1733296660985,0.25229951,3702.7,3702.5,3.76236372]
[1733296661178,0.00695113,3703.2,3702.5,4.39912991]
[1733296661354,0.25187427,3703.1,3702.5,1.69825991]
[1733296661561,0.25187427,3703.0,3702.5,1.69825991]
[1733296661753,0.25187427,3702.9,3702.5,1.69825991]
[1733296661963,0.25187763,3702.8,3702.5,4.39911991]
[1733296662252,0.25187763,3703.1,3702.7,0.09999372]
[1733296662480,0.25187763,3703.0,3702.9,0.2]
[1733296662686,0.25187763,3703.1,3702.9,0.991]
[1733296662886,0.25187763,3703.0,3702.9,0.991]
[1733296663194,0.00695113,3703.2,3703.1,3.79143372]
[1733296663845,0.00695113,3703.2,3703.1,3.81843407]
[1733296664072,11.50898,3705.1,3703.7,0.09999372]
[1733296664073,8.81,3705.1,3703.7,0.09999372]
[1733296664281,2.69915,3704.9,3703.8,3.33199195]
[1733296665357,2.69855,3705.7,3704.7,2.57829195]
[1733296665553,2.69861,3705.6,3704.7,2.57829195]
[1733296665799,11.00847,3705.9,3704.7,2.57829195]
[1733296666006,2.69848,3705.8,3704.7,2.57829195]
[1733296666295,3.0,3705.8,3704.6,0.09999372]
[1733296666860,2.69868,3705.6,3704.6,0.09999372]
[1733296667180,2.69868,3705.6,3703.7,2.69998]
[1733296667181,8.31,3705.2,3703.8,0.09999372]
[1733296667381,3.0,3704.9,3703.8,0.09999372]
[1733296667559,2.69939,3704.6,3703.6,0.2]
[1733296667759,0.269939,3704.5,3703.6,0.2]
[1733296667987,0.269939,3704.5,3703.8,0.09999372]
[1733296668400,0.269939,3704.5,3703.6,0.2]
[1733296669258,3.24954,3704.4,3703.5,0.88679372]
[1733296669462,2.9514,3704.3,3703.5,0.7868]
[1733296669673,0.3771339,3704.2,3703.6,0.09999372]
[1733296670101,8.31,3705.1,3704.2,0.29999372]
[1733296670399,8.31,3705.1,3704.3,0.8182]
[1733296671304,5.69862,3705.6,3704.5,0.2]
[1733296671659,3.0,3705.6,3704.3,1.0182]
[1733296671975,2.95065,3705.3,3704.3,0.8182]
[1733296672171,2.83009195,3705.3,3704.3,0.8182]
[1733296672384,2.69907,3705.0,3704.3,0.8182]
[1733296672587,2.69921,3704.8,3703.9,0.89429372]
[1733296672795,0.269921,3704.7,3703.9,0.89429372]
[1733296674709,0.55,3704.6,3703.9,0.7943]
[1733296674890,2.69964,3704.2,3703.5,0.8132]
[1733296675062,2.69964,3704.2,3703.6,0.09999372]
[1733296675489,3.2495,3704.4,3703.6,0.09999372]
[1733296675681,0.35013,3704.3,3703.6,0.09999372]
[1733296676210,3.04971,3704.3,3703.5,0.8132]
[1733296676561,2.69966,3704.2,3703.5,0.8132]
[1733296677004,0.55,3704.1,3703.6,0.09999372]
[1733296677680,0.55,3704.1,3703.5,0.8132]
[1733296677875,0.82956094,3704.1,3703.5,0.8132]
[1733296678210,0.55,3704.2,3703.6,0.09999372]
[1733296678380,0.8007625,3704.3,3703.6,0.09999372]
[1733296679898,0.80095153,3704.3,3703.6,0.09999372]
[1733296680331,3.50051153,3704.3,3703.6,0.09999372]
[1733296680530,0.25095153,3704.2,3703.6,0.09999372]
[1733296680715,2.95061153,3704.2,3703.6,0.09999372]
[1733296681028,0.80095153,3704.1,3703.6,0.09999372]
[1733296681390,0.55,3704.2,3703.6,0.09999372]
[1733296681729,0.55,3704.0,3703.6,0.09999372]
[1733296682232,0.55,3704.0,3703.6,0.08889372]
[1733296682539,0.80127129,3704.0,3703.6,0.08889372]
[1733296682703,0.55,3704.0,3703.6,0.08889372]
[1733296683032,0.55,3704.3,3703.6,0.08889372]
[1733296683196,0.55,3704.1,3703.6,0.08889372]
[1733296683532,0.55,3703.9,3703.7,0.7972]
[1733296683712,0.80127129,3703.9,3703.7,0.7972]
[1733296684040,0.55,3704.1,3703.7,0.7972]
[1733296684205,0.55,3703.9,3703.7,0.7972]
[1733296684529,0.25127129,3703.8,3703.7,0.7972]
[1733296686644,0.55,3704.2,3703.7,0.7972]
[1733296687808,0.55,3704.0,3703.7,0.7972]
[1733296689140,2.69992,3703.8,3703.4,0.796]
[1733296689324,0.55,3703.7,3703.4,0.796]
[1733296690835,3.2498,3704.0,3703.4,0.796]
[1733296691127,0.55,3703.7,3703.4,0.796]
[1733296691535,0.55,3703.5,3703.3,0.08889372]
[1733296691893,3.2502,3703.5,3703.3,0.08889372]
[1733296692099,3.2502,3703.5,3703.2,0.08889372]
[1733296692836,2.70007,3703.7,3703.2,0.08889372]
[1733296693009,2.70007,3703.7,3703.1,0.8165]
[1733296693010,0.55,3703.6,3703.1,0.8165]
[1733296693190,0.55,3703.6,3703.2,0.08889372]
[1733296693394,0.55,3703.5,3703.2,0.08889372]
[1733296693593,0.55,3703.4,3703.2,0.08889372]
[1733296694289,2.7001,3703.6,3703.2,0.08889372]
[1733296694290,0.55,3703.5,3703.2,0.08889372]
[1733296694936,0.55,3703.7,3703.2,0.08889372]
[1733296695109,0.55,3703.9,3703.2,0.08889372]
[1733296695497,0.55,3703.8,3703.2,0.08889372]
[1733296695733,2.7,3703.7,3703.2,0.08889372]
[1733296695949,0.55,3703.6,3703.3,0.7779]
[1733296696397,0.55,3703.7,3703.3,0.7779]
[1733296696912,0.55,3703.7,3703.2,0.08889372]
[1733296697121,0.8018,3703.7,3703.2,0.08889372]
[1733296697291,0.55,3703.4,3703.0,0.08889372]
[1733296697492,0.55,3703.4,3703.2,0.08889372]
[1733296697822,2.95162,3704.0,3703.1,0.7779]
[1733296697823,2.69998,3703.8,3703.1,0.7779]
[1733296698024,0.55,3703.6,3703.1,0.7779]
[1733296698207,0.55,3703.6,3702.8,0.7779]
[1733296698536,0.55,3703.1,3702.8,0.7779]
[1733296699119,0.55,3703.2,3702.8,0.7779]
[1733296701545,2.69998,3703.8,3702.8,0.7779]
[1733296701546,1.13060111,3703.9,3703.0,0.2]
[1733296701834,2.69994,3703.8,3703.5,0.8002]
[1733296702269,0.2518,3704.2,3703.1,0.8002]
[1733296702410,2.70013,3703.6,3703.1,0.8002]
[1733296702611,2.70017,3703.5,3703.1,0.8002]
[1733296702811,0.55,3703.4,3703.1,0.8002]
[1733296703207,3.55,3703.9,3703.1,0.8002]
[1733296703513,0.76321811,3703.9,3703.2,0.2]
[1733296703711,3.0,3704.0,3703.2,0.2]
[1733296703923,3.0,3704.0,3702.4,0.7779]
[1733296703924,1.13060111,3704.2,3703.5,0.8314]
[1733296704127,4.58010111,3704.4,3703.5,0.8314]
[1733296704323,0.75,3704.4,3703.7,0.2]
[1733296704943,3.4495,3704.4,3703.7,0.2]
[1733296705142,3.4495,3704.4,3703.6,0.08889372]
[1733296705459,0.55,3704.2,3703.6,0.08889372]
[1733296705754,0.55,3704.2,3703.7,0.08889372]
[1733296705967,3.24964,3704.2,3703.5,0.8314]
[1733296706170,0.55,3704.0,3703.5,0.8314]
[1733296706662,0.53814943,3704.2,3703.5,0.8314]
[1733296707160,0.53814943,3704.2,3703.7,0.08889372]
[1733296707354,3.8296443,3704.3,3703.7,0.08889372]
[1733296707563,2.69972,3704.1,3703.7,0.08889372]
[1733296707922,1.1300543,3704.2,3703.9,0.08889372]
[1733296708123,1.8800543,3704.4,3703.9,0.08889372]
[1733296708427,1.1300543,3704.3,3703.9,0.08889372]
[1733296708623,3.8296143,3704.3,3703.9,0.08889372]
[1733296708935,0.55,3704.2,3703.9,0.08889372]
[1733296709363,3.24964,3704.2,3703.9,0.08889372]
[1733296709969,3.24964,3704.2,3703.8,0.8003]
[1733296710283,3.24964,3704.2,3703.9,0.08889372]
[1733296711267,0.55,3704.2,3703.4,0.08889372]
[1733296711430,2.69999,3703.8,3703.5,0.7899]
[1733296711638,2.70001,3703.7,3703.5,0.7899]
[1733296711968,2.70015,3703.5,3703.2,0.7899]
[1733296712261,2.70015,3703.5,3703.2,0.87879372]
[1733296712460,2.70006,3703.7,3703.2,0.87879372]
[1733296713077,0.55,3703.7,3703.2,0.87879372]
[1733296714530,1.1300543,3703.9,3703.3,0.2]
[1733296714750,1.1300543,3704.0,3703.3,0.2]
[1733296715740,1.1300543,3703.9,3703.3,0.2]
[1733296716068,3.8298443,3704.0,3703.3,0.2]
[1733296716250,3.8299543,3703.9,3703.3,0.2]
[1733296716455,2.7,3703.7,3703.2,0.87879372]
[1733296716851,3.8300543,3703.7,3703.2,0.87879372]
[1733296717077,0.55,3703.6,3703.2,0.7899]
[1733296717251,0.55,3703.3,3702.9,0.8188]
[1733296717447,0.55,3703.3,3703.0,0.08889372]
[1733296718085,0.55,3703.4,3702.9,0.8188]
[1733296718283,3.25023,3703.4,3702.9,0.8188]
[1733296718485,4.3802843,3703.4,3703.3,0.891]
[1733296718647,3.25023,3703.4,3703.3,0.891]
[1733296718980,0.55,3703.4,3703.3,0.891]
[1733296719682,1.6800543,3703.4,3703.3,0.891]
[1733296720245,1.1300543,3703.6,3703.3,1.7087]
[1733296720496,1.1300543,3703.6,3703.5,0.08889372]
[1733296720687,1.1300543,3704.2,3704.0,0.8177]
[1733296720977,0.75,3704.4,3704.1,0.2]
[1733296721179,0.75,3704.4,3704.2,0.8177]
[1733296723973,0.75,3704.4,3704.3,0.08889372]
[1733296724688,0.75,3704.4,3704.2,0.8177]
[1733296724856,0.75,3704.4,3704.3,0.08889372]
[1733296725055,0.75,3704.4,3704.2,0.8177]
[1733296725288,0.75,3704.4,3704.3,0.08889372]
[1733296731763,0.75,3704.4,3704.3,0.28889372]
[1733296732276,0.75,3704.4,3704.3,0.66953109]
[1733296732477,0.75,3704.4,3704.3,0.28889372]
[1733296736684,0.75,3704.4,3703.4,2.77492787]
[1733296737087,0.75,3704.4,3704.1,2.69971]
[1733296737282,0.75,3704.4,3703.4,3.10175101]
[1733296737486,0.75,3704.4,3703.5,0.9571263]
[1733296737703,0.75,3704.4,3704.2,2.6996]
[1733296737912,0.75,3704.4,3703.6,0.02699184]
[1733296738124,0.75,3704.4,3704.3,2.69956]
[1733296739876,0.75,3704.4,3704.3,3.45676]
[1733296740219,0.75,3704.4,3704.3,1.3755472]
[1733296741318,0.75,3704.4,3704.3,4.0751072]
[1733296741617,0.75,3704.4,3704.3,7.10209871]
[1733296741797,0.75,3704.4,3704.3,7.0751072]
[1733296742019,1.1300543,3706.1,3705.3,2.6988]
[1733296742194,0.7758,3706.4,3705.4,0.7977]
[1733296743084,3.47387,3706.4,3705.4,0.7977]
[1733296743288,2.69804,3706.4,3705.4,0.7977]
[1733296743499,2.54804,3706.4,3705.4,0.7977]
[1733296743712,2.952914,3706.3,3705.4,0.7977]
[1733296744288,2.6982,3706.2,3705.4,0.7977]
[1733296744488,2.69826,3706.1,3705.4,0.7977]
[1733296745211,0.254804,3706.3,3705.4,0.7977]
[1733296745428,2.69846,3705.9,3705.4,0.7977]
[1733296745629,0.269846,3705.9,3705.4,0.7977]
[1733296745791,0.55,3705.7,3704.3,0.7677]
[1733296745985,2.6989,3705.3,3704.3,0.7677]
[1733296746183,2.69869,3705.5,3704.3,0.7677]
[1733296746430,0.55,3705.7,3703.4,0.7677]
[1733296746431,0.7712,3705.1,3703.4,0.7677]
[1733296746633,2.69934,3704.7,3703.4,0.93357]
[1733296746789,2.69934,3704.7,3703.4,0.96056274]
[1733296746997,2.69934,3704.6,3703.5,0.7677]
[1733296748138,2.6992,3704.8,3703.6,0.811]
[1733296748436,2.6992,3704.8,3703.4,0.19286274]
[1733296748437,0.55,3705.0,3703.8,0.811]
[1733296748645,2.69942,3704.5,3703.8,0.811]
[1733296748955,3.12829195,3705.0,3703.8,0.811]
[1733296749107,3.12829195,3705.0,3704.0,0.811]
[1733296749108,2.69914,3704.9,3704.0,0.811]
[1733296749309,0.6598632,3704.8,3704.1,0.02699364]
[1733296749647,3.3590832,3704.8,3704.0,0.811]
[1733296749802,3.3590832,3704.8,3704.1,0.02699366]
[1733296750144,3.3590832,3704.8,3704.0,0.811]
[1733296750297,2.69927,3704.7,3704.0,0.811]
[1733296750503,0.36896507,3704.7,3704.0,0.811]
[1733296751244,0.36896507,3704.7,3704.1,0.02699429]
[1733296751740,2.69928,3704.7,3704.1,0.02699429]
[1733296751908,2.69928,3704.7,3704.0,0.811]
[1733296752440,3.12829195,3705.0,3704.0,0.811]
[1733296752604,0.55,3704.8,3704.0,0.811]
[1733296752798,0.55,3704.4,3703.7,0.7968]
[1733296753001,0.3946092,3704.3,3703.4,0.7968]
[1733296753204,2.69971,3704.1,3703.4,0.7968]
[1733296753645,2.6998,3704.0,3703.4,0.7968]
[1733296754400,0.55,3704.0,3703.3,0.891]
[1733296754837,2.70014,3703.6,3703.3,0.891]
[1733296755257,2.70022,3703.4,3703.3,0.891]
[1733296756029,3.520242,3703.4,3703.3,0.891]
[1733296756342,0.270022,3703.4,3703.3,0.891]
[1733296756660,0.55,3703.7,3703.3,0.891]
[1733296756835,3.25003,3703.7,3703.3,0.891]
[1733296757358,0.55,3703.7,3703.3,0.891]
[1733296757666,0.55,3703.8,3703.4,0.8307]
[1733296757855,3.24979,3704.0,3703.4,0.8307]
[1733296758023,0.55,3703.8,3703.4,0.8307]
[1733296758862,0.55,3703.6,3703.3,0.891]
[1733296759159,0.55,3703.8,3703.3,0.891]
[1733296761370,2.7,3703.7,3703.3,0.891]
[1733296761529,0.55,3703.5,3703.3,0.891]
[1733296761719,0.987,3703.4,3703.3,0.891]
[1733296762118,0.55,3703.4,3703.3,0.891]
[1733296762345,3.0,3703.9,3703.3,0.891]
[1733296762346,0.55,3703.5,3703.3,0.891]
[1733296762531,3.55,3703.8,3703.3,0.891]
[1733296763830,0.55,3703.8,3703.3,0.891]
[1733296765038,0.55,3703.8,3703.3,1.6493]
[1733296765242,0.7526,3704.2,3703.5,2.70008]
[1733296765431,1.10453585,3704.5,3703.6,2.7]
[1733296765792,0.8305,3704.8,3704.1,2.6997]
[1733296765934,0.19605543,3704.7,3704.1,2.6997]
[1733296766135,0.8305,3704.8,3704.1,2.69971]
[1733296766338,0.8305,3704.8,3704.2,2.69961]
[1733296766767,0.8305,3704.8,3704.3,2.69955]
[1733296767143,3.0,3704.7,3703.3,1.05593]
[1733296767343,0.8305,3704.8,3703.4,0.7501]
[1733296767569,0.8305,3704.8,3703.4,3.47730884]
[1733296767865,0.55,3704.7,3703.6,2.70007]
[1733296768070,0.55,3704.7,3703.7,2.69993]
[1733296768281,1.05888463,3704.7,3703.9,2.69981]
[1733296768449,0.55,3704.7,3703.9,2.69981]
[1733296768973,0.55,3704.7,3703.8,2.69991]
[1733296769989,0.55,3704.7,3703.6,2.7]
[1733296772465,0.55,3704.7,3703.7,2.69995]
[1733296774289,3.24928,3704.7,3703.7,2.69995]
[1733296774495,0.55,3704.5,3703.4,0.7501]
[1733296774780,0.55,3704.5,3703.6,2.70001]
[1733296774986,0.55,3704.7,3703.6,2.70001]
[1733296775480,0.55,3704.7,3703.5,0.16411]
[1733296775481,0.55,3704.7,3703.7,2.69998]
[1733296775684,2.69887,3705.3,3703.7,2.69998]
[1733296775685,3.3901629,3705.4,3704.6,2.57829195]
[1733296775842,3.3901629,3705.4,3704.3,2.6995]
[1733296775843,1.1300543,3706.4,3705.7,2.69848]
[1733296776043,1.1300543,3706.5,3705.8,2.69845]
[1733296776342,1.9598543,3706.7,3705.8,2.69845]
[1733296776690,0.66328254,3706.6,3705.8,2.69845]
[1733296777473,0.8298,3706.7,3705.8,2.69845]
[1733296778188,0.8298,3706.7,3705.4,0.79]
[1733296778346,0.8298,3706.7,3705.6,2.6986]
[1733296778553,3.0,3706.6,3705.4,0.79]
[1733296779352,0.55,3706.5,3705.6,2.69861]
[1733296779589,0.55,3706.4,3705.6,2.69861]
[1733296779961,0.55,3706.4,3705.4,3.48874]
[1733296780661,0.55,3706.4,3705.8,2.69843]
[1733296781062,0.55,3706.4,3705.9,2.69838]
[1733296781270,0.55,3706.6,3705.9,2.69838]
[1733296781486,1.01600097,3706.6,3705.9,2.69838]
[1733296784061,0.55,3706.6,3706.1,2.69825]
[1733296784455,0.55,3706.6,3705.9,2.69838]
[1733296784872,0.55,3706.6,3705.6,2.69858]
[1733296785073,0.55,3706.6,3705.4,0.79]
[1733296785074,3.55,3706.6,3705.7,2.69853]
[1733296785285,4.28578297,3706.6,3705.7,2.69853]
[1733296786346,0.8298,3706.7,3705.5,2.69869]
[1733296786547,3.28020966,3706.9,3705.5,2.69869]
[1733296786891,0.28020966,3706.9,3705.5,2.69869]
[1733296787204,0.28020966,3706.9,3706.0,2.69825]
[1733296787347,0.28020966,3706.9,3705.4,1.681]
[1733296787546,0.55,3706.7,3705.7,2.69847]
[1733296787760,0.55,3706.8,3705.7,2.69847]
[1733296787958,3.0,3706.7,3705.7,2.69847]
[1733296788251,0.55,3706.4,3705.6,2.69861]
[1733296788893,0.55,3706.4,3705.4,1.681]
[1733296788894,0.55,3705.5,3705.4,0.891]
[1733296790360,0.55,3705.5,3705.4,3.58976]
[1733296790558,0.55,3705.5,3705.4,3.97572058]
[1733296790766,0.55,3705.5,3705.4,3.948736]
[1733296792091,0.69089562,3705.6,3705.5,2.69869]
[1733296792599,0.69089562,3705.6,3705.4,1.249976]
[1733296792794,0.69089562,3705.6,3705.5,2.69869]
[1733296794482,0.69089562,3705.6,3705.4,0.891]
[1733296794684,0.55,3705.5,3705.4,0.891]
[1733296796371,0.55,3705.8,3705.4,0.891]
[1733296797490,0.8308,3706.3,3705.4,0.891]
[1733296798064,6.881855,3706.3,3705.4,0.891]
[1733296798405,1.183685,3706.3,3705.4,0.891]
[1733296798606,0.8308,3706.3,3705.6,2.69861]
[1733296798788,0.8308,3706.3,3705.5,0.76]
[1733296798789,0.8308,3706.3,3705.7,2.69854]
[1733296799179,0.8308,3706.3,3705.5,3.45867]
[1733296799375,0.8308,3706.3,3705.6,2.69859]
[1733296799576,0.55,3706.2,3705.6,2.69859]
[1733296799780,0.55,3706.2,3705.5,0.76]
[1733296799984,0.55,3706.2,3705.5,3.4480345]
[1733296800393,0.55,3706.2,3705.5,0.7494145]
[1733296800579,0.55,3706.2,3705.8,2.69846]
[1733296800775,0.55,3706.5,3705.5,0.7494145]
[1733296800982,0.27891692,3706.9,3705.9,2.57829195]
[1733296801399,0.27891692,3706.9,3706.4,2.698]
[1733296801771,0.27891692,3706.9,3705.6,0.46089446]
[1733296801965,0.1581661,3707.1,3706.4,2.69803]
[1733296802198,0.1581661,3707.1,3706.5,0.05847602]
[1733296802400,0.1581661,3707.1,3705.6,0.46089446]
[1733296802619,0.1581661,3707.1,3706.4,2.69801]
[1733296802776,0.1581661,3707.1,3706.0,0.02697551]
[1733296802983,0.1581661,3707.1,3706.0,0.7691]
[1733296803190,0.1581661,3707.1,3706.2,2.69816]
[1733296803508,0.1581661,3707.1,3706.0,0.7691]
[1733296803509,0.8131,3707.0,3706.0,0.7691]
[1733296803700,2.69768,3706.9,3706.0,0.7691]
[1733296803897,0.36689461,3706.8,3705.7,0.8143]
[1733296804071,3.55,3706.7,3705.7,0.8143]
[1733296804277,3.55,3706.7,3705.8,2.69846]
[1733296804476,3.5107,3707.0,3705.8,2.69846]
[1733296804477,0.55,3706.8,3705.8,2.69846]
[1733296804683,0.55,3706.8,3705.7,0.8143]
[1733296804911,0.55,3706.9,3705.7,0.8143]
[1733296805213,0.55,3706.7,3705.7,0.8143]
[1733296805673,0.55,3706.5,3705.7,0.8143]
[1733296805875,0.7528,3706.4,3705.4,4.35663]
[1733296806213,0.55,3706.3,3705.5,2.69867]
[1733296806409,0.55,3706.3,3705.4,1.6579]
[1733296806610,0.55,3706.3,3705.5,2.69869]
[1733296806923,0.950077,3706.3,3705.4,1.6579]
[1733296807126,0.55,3706.3,3705.4,1.6579]
[1733296807324,0.55,3706.3,3705.5,2.69866]
[1733296807630,0.55,3706.3,3705.4,1.6579]
[1733296807784,3.24817,3706.3,3705.4,0.891]
[1733296807982,0.55,3706.1,3705.4,0.891]
[1733296808516,3.67108187,3706.1,3705.4,0.891]
[1733296808879,0.97276187,3706.1,3705.4,0.891]
[1733296809222,0.97276187,3706.1,3705.4,3.46506932]
[1733296809377,0.97276187,3706.1,3705.4,0.76631932]
[1733296809905,0.97276187,3706.1,3705.4,3.46505932]
[1733296810421,0.97276187,3706.1,3705.4,0.76631932]
[1733296811122,4.41339506,3706.1,3705.4,0.76631932]
[1733296811283,1.71512506,3706.1,3705.4,0.76631932]
[1733296811886,0.55,3705.9,3705.4,0.76631932]
[1733296812084,3.55,3705.9,3705.4,0.76631932]
[1733296812625,0.55,3705.9,3705.4,0.76631932]
[1733296813284,3.55,3705.9,3705.4,0.76631932]
[1733296813914,2.69849,3705.8,3705.4,0.76631932]
[1733296814123,0.55,3705.6,3705.4,0.76631932]
[1733296814597,0.55,3705.9,3705.4,0.76631932]
[1733296815688,3.24842,3705.9,3705.4,0.76631932]
[1733296815881,3.0,3705.8,3705.4,0.76631932]
[1733296816116,0.55,3705.7,3705.4,0.76631932]
[1733296816492,0.55,3705.9,3705.4,0.76631932]
[1733296816728,0.55,3705.7,3705.4,0.76631932]
[1733296818620,0.55,3705.9,3705.4,0.76631932]
[1733296822444,3.55,3705.9,3705.4,0.76631932]
[1733296822814,0.55,3705.9,3705.4,0.76631932]
[1733296823451,0.55,3706.0,3705.5,0.02698285]
[1733296823612,0.55,3706.2,3705.5,2.72560165]
[1733296823819,0.27866771,3706.4,3705.5,2.72560165]
[1733296824013,0.55,3706.3,3705.5,2.72560165]
[1733296824639,0.55,3706.3,3705.4,0.76631932]
[1733296824943,1.0943352,3706.3,3705.4,0.76631932]
[1733296825309,3.7924552,3706.3,3705.4,0.76631932]
[1733296825731,0.27866771,3706.4,3705.5,0.8081]
[1733296825934,1.1300543,3706.7,3705.5,3.38639195]
[1733296826243,1.28218091,3706.8,3705.5,3.38639195]
[1733296826406,0.15212661,3706.8,3705.8,2.69843]
[1733296827118,0.15212661,3706.8,3706.0,0.8122]
[1733296827444,0.1581661,3707.1,3706.3,2.69809]
[1733296827630,0.1581661,3707.1,3706.1,0.02697666]
[1733296827631,0.1581661,3707.1,3706.4,2.69801]
[1733296827809,0.1581661,3707.1,3706.3,2.48182177]
[1733296828147,0.1581661,3707.1,3706.5,0.778]
[1733296828365,0.1581661,3707.1,3706.9,2.69761]
[1733296828944,0.1581661,3707.1,3706.6,0.02697125]
[1733296829145,0.1581661,3707.1,3706.2,2.69813]
[1733296829146,0.1581661,3707.1,3706.2,2.69818]
[1733296829355,0.1581661,3707.1,3706.3,0.23533086]
[1733296829678,0.1581661,3707.1,3706.3,0.15749758]
[1733296830004,0.1581661,3707.1,3706.5,0.09745996]
[1733296830242,0.1581661,3707.1,3706.7,0.02760052]
[1733296830540,0.1581661,3707.1,3706.8,0.01399884]
[1733296830755,0.1581661,3707.1,3706.4,2.57829195]
[1733296831053,0.1581661,3707.1,3706.9,2.6976]
[1733296831202,0.1581661,3707.1,3707.0,2.69759]
[1733296831706,0.7081661,3707.1,3707.0,2.69759]
[1733296832140,0.7081661,3707.1,3707.0,3.48179]
[1733296832341,0.1581661,3707.1,3707.0,3.48179]
[1733296832643,0.1581661,3707.1,3707.0,4.3575752]
[1733296835059,0.1581661,3707.1,3707.0,1.6599852]
[1733296835266,0.7081661,3707.1,3707.0,0.7842]
[1733296835799,0.1581661,3707.1,3707.0,3.48179]
[1733296838176,0.1581661,3707.1,3707.0,0.7842]
[1733296838360,0.7081661,3707.1,3707.0,0.7842]